[Event "GER-ch Youth-U12 2022"]
[Site "Willingen"]
[Date "2022.06.05"]
[Round "2.17"]
[White "Schuricht, Emil Frederick"]
[Black "Dell, Philip"]
[Result "1-0"]
[ECO "D36"]
[WhiteElo "1641"]
[BlackElo "1457"]
[Annotator "NA RC COMBH"]
[PlyCount "55"]
[EventDate "2022.06.05"]
[EventType "swiss"]
[EventRounds "9"]
[EventCountry "GER"]
[SourceTitle "playchess.com"]
[Source "ChessBase"]
[SourceQuality "1"]
[TimeControl "40/4500+30:900+30"]

1. d4 {[%emt 0:00:00]} d5 {[%emt 0:00:00]} 2. c4 {[%emt 0:00:00]} e6 {[%emt 0:00:00]} 3. Nc3 {[%emt 0:00:00]} Nf6 {[%emt 0:00:00]} 4. cxd5 {[%emt 0:00:00]} exd5 {[%emt 0:00:00]} 5. Bg5 {[%emt 0:00:00]} Be7 {[%emt 0:00:00]} 6. e3 {[%emt 0:00:00]} O-O {[%emt 0:00:00]} 7. Bd3 {[%emt 0:00:00]} h6 {[%emt 0:00:00]} 8. Bh4 {[%emt 0:00:00]} Re8 {[%emt 0:00:00]} 9. Nge2 {[%emt 0:00:00]} c6 {[%emt 0:00:00]} 10. Qc2 {[%emt 0:00:00]} Nbd7 {[%emt 0:00:00]} 11. O-O {[%emt 0:00:00]} Nh5 {[%emt 0:00:00]} 12. Bxe7 {[%emt 0:00:00]} Qxe7 {[%emt 0:00:00]} 13. Rab1 {[%emt 0:00:00]} Nb6 {[%emt 0:00:00]} 14. Rfc1 {[%emt 0:00:00]} Nf6 {[%emt 0:00:00]} 15. Ng3 {[%emt 0:00:00]} Bg4 {[%emt 0:00:00]} 16. h3 {[%emt 0:00:00]} Bh5 {[%emt 0:00:00]} 17. b4 {[%emt 0:04:05]} a6 {[%emt 0:00:00]} 18. a4 {[%emt 0:02:48]} Nc8 {[%emt 0:22:09]} 19. b5 {[%emt 0:08:57]} Nd6 {[%emt 0:11:48]} 20. bxc6 {[%emt 0:03:16]} bxc6 {[%emt 0:00:24]} 21. Nxh5 {[%emt 0:01:08]} Nxh5 {[%emt 0:01:13]} 22. Qe2 {[%emt 0:00:19]} Nf6 {[%emt 0:00:19]} 23. Bxa6 {[%emt 0:00:23]} Nfe4 {[%emt 0:00:53]} 24. Nxe4 {[%emt 0:01:01]} Qxe4 {[%emt 0:01:07]} 25. Rb6 {[%emt 0:01:14]} Rab8 {[%emt 0:19:45]} 26. Rbxc6 {[%emt 0:06:03]} Rb1 {[%emt 0:01:41]} 27. Qd3 {[%emt 0:04:20]} Nc4 {[%emt 0:03:47]} 28. Qxb1 {[%emt 0:00:30]} 1-0

[Event "GER-ch Youth-U12 2022"]
[Site "Willingen"]
[Date "2022.06.05"]
[Round "2.18"]
[White "Wang, Arthur D"]
[Black "Polzin, Gustav"]
[Result "0-1"]
[ECO "A03"]
[WhiteElo "2090"]
[BlackElo "1643"]
[Annotator "TA"]
[PlyCount "106"]
[EventDate "2022.06.05"]
[EventType "swiss"]
[EventRounds "9"]
[EventCountry "GER"]
[SourceTitle "playchess.com"]
[Source "ChessBase"]
[SourceQuality "1"]
[TimeControl "40/4500+30:900+30"]

{[%evp 9,105,-12,0,-44,-21,-27,-15,-22,60,33,43,21,16,22,25,-19,29,8,45,61,68,20,117,112,113,36,41,27,45,31,72,50,75,73,127,129,128,125,219,180,187,174,175,185,327,330,316,206,208,211,190,141,222,52,57,36,54,31,35,-376,-362,-602,-575,-1232,-1168,-1212,-1189,-29986,-29987,-29989,-29990,-29990,-29991,-29990,-29990,-29991,-29988,-29988,-29989,-29991,-29991,-29991,-29992,-29992,-29993,-29993,-29994,-29994,-29995,-29995,-29996,-29997,-29997,-29998,-29997,-29998,-29999,-29999]} 1. f4 {[%emt 1:16:00]} d5 {[%emt 1:16:00]} 2. Nf3 {[%emt 0:00:30]} Nf6 {[%emt 0:00:30]} 3. e3 {[%emt 0:00:00]} g6 {[%emt 0:00:00]} 4. b3 {[%emt 0:00:00]} Bg7 {[%emt 0:00:00]} 5. Bb2 {[%emt 0:00:00]} c5 {[%emt 0:00:00]} 6. h3 {[%emt 0:00:00] A03: Bird's Opening with 1...d5.} Nc6 {[%emt 0:00:00]} 7. Bb5 {[%emt 0:00:00] [#]} Qb6 $146 {[%emt 0:00:00]} ({Predecessor:} 7... O-O 8. Bxc6 bxc6 9. O-O Qb6 10. Qe1 Ba6 11. d3 Rad8 12. Nbd2 Rfe8 13. Ne5 Nh5 {1-0 (66) London,S-Bleicher,H (1767) Cammeray 2011}) 8. Bxc6+ {[%emt 0:00:00] The position is equal.} bxc6 {[%emt 0:00:00]} (8... Qxc6 $11 9. O-O b5) 9. O-O {[%emt 0:00:00]} Ba6 {[%emt 0:00:00]} 10. d3 {[%emt 0:00:00]} O-O {[%emt 0:00:00]} 11. Ne5 {[%emt 0:00:00]} c4 {[%emt 0:00:00]} 12. Qe2 {[%emt 0:00:00]} Rfd8 {[%emt 0:00:00]} (12... Nh5 {deserves consideration.} 13. Kh2 cxd3 14. cxd3 Bxe5 15. fxe5 f5) 13. Nc3 $11 {[%emt 0:00:00]} Nh5 {[%emt 0:00:00]} 14. Na4 {[%emt 0:00:00]} Qc7 {[%emt 0:00:00]} 15. Kh2 {[%emt 0:00:00] Against Ng3} (15. Rfd1 $14) 15... Rab8 {[%emt 0:00:00]} (15... c5) (15... c5 $11) 16. Nc5 $16 {[%emt 0:00:00]} (16. dxc4 c5 $14) 16... Bc8 {[%emt 0:00:00]} 17. Rad1 {[%emt 0:00:00]} (17. dxc4 $16 Qd6 18. Ncd3) 17... Rb5 {[%emt 0:00:00]} 18. d4 {[%emt 0:00:00]} Nf6 {[%emt 0:00:00][%cal Ob5c5]} 19. Rc1 {[%emt 0:00:00]} h5 {[%emt 0:00:00]} 20. Bc3 {[%emt 0:00:00]} cxb3 {[%emt 0:00:00]} 21. cxb3 {[%emt 0:00:00]} Nd7 {[%emt 0:00:00]} ({Black should try} 21... Rxc5 22. dxc5 Ne4) 22. Nexd7 {[%emt 0:00:00]} (22. Ncxd7 $6 Bxd7 23. Nxd7 Rxd7 $14) 22... Bxd7 {[%emt 0:00:00]} 23. a4 {[%emt 0:00:00]} Rb6 {[%emt 0:00:00]} (23... Rxc5 $16 {was worth a try.} 24. dxc5 Bxc3 25. Rxc3 Qa5) 24. Ba5 {[%emt 0:00:00]} Bf5 {[%emt 0:00:00]} 25. Bxb6 {[%emt 0:00:00]} axb6 {[%emt 0:00:00]} 26. Nd3 {[%emt 0:00:00]} f6 {[%emt 0:00:00]} (26... Qd6 {is a better defense.} 27. g4 hxg4) 27. Nb4 $18 {[%emt 0:00:00]} Rd6 {[%emt 0:00:00]} 28. Rc3 {[%emt 0:00:00] Rfc1 is the strong threat.} e5 {[%emt 0:00:00]} 29. Rfc1 {[%emt 0:00:00][%cal Rc3c6]} exf4 {[%emt 0:00:00]} 30. Kh1 {[%emt 0:00:00]} (30. Rxc6 Rxc6 31. Rxc6 f3+ 32. Rxc7 fxe2) ({White should play} 30. exf4 $18 {And now Qf3 would win.} Bf8 31. Qf3 (31. Nxc6 Re6 $16)) 30... Be4 {[%emt 0:00:00] Prevents Qf3.} (30... fxe3 $16 31. Qxe3 Re6) 31. Nd3 $2 {[%emt 0:00:00]} ({Don't play} 31. Nxc6 fxe3 32. Qxe3 Qf7) ({Don't do} 31. Rxc6 $6 Rxc6 32. Rxc6 Qe7 $16) (31. exf4 $18 {[%cal Rb4c6]} Re6 32. Qf2 (32. Nxc6 Qxf4 33. Rf1 Qc7 $16) (32. Rxc6 Rxc6 33. Rxc6 Qxf4 $14)) 31... fxe3 $14 {[%emt 0:00:00]} 32. Qxe3 {[%emt 0:00:00]} Re6 {[%emt 0:00:00][%cal Oe4g2]} 33. Qf2 {[%emt 0:00:00]} Bh6 {[%emt 0:00:00][%cal Bg7h6,Bh6e3,Be3d4,Bd4c3,Bc3e5,Be5f4,Bf4g3,Bg3e1][%mdl 32] [#] Against Nf4. Threatens to win with ...Bxd3.} 34. Rf1 $2 {[%emt 0:00:00][%mdl 8192] Now White is beyond hope.} (34. Re1 $14 {is the one way to stay ahead.}) 34... Be3 $1 $19 {[%emt 0:00:00]} 35. Qe1 {[%emt 0:00:00]} (35. Qe2 Bxd4 36. Rcc1) 35... Bxd4 {[%emt 0:00:00][%cal Oe4g2] Hoping for ...Bxg2+!} 36. Qd2 {[%emt 0:00:00]} Qg3 {[%emt 0:00:00][%cal Rg3h3]} 37. Nf4 {[%emt 0:00:00]} Bxc3 {[%emt 0:00:00] This bishop pair is nice.} 38. Qe2 {[%emt 0:00:00] [#]} Be5 $1 {[%emt 0:00:00] Black mates.} 39. Qf2 {[%emt 0:00:00]} (39. Kg1 Bxf4) 39... Bxf4 {[%emt 0:00:00][%csl Gf4][%cal Rg3h2]} 40. Qxg3 {[%emt 0:00:00]} Bxg3 {[%emt 0:00:00]} 41. b4 {[%emt 0:00:00]} Bd3 {[%emt 0:00:00]} 42. Rd1 {[%emt 0:00:00]} Re1+ {[%emt 0:00:00]} 43. Rxe1 {[%emt 0:00:00]} Bxe1 {[%emt 0:00:00]} 44. a5 {[%emt 0:00:00]} d4 {[%emt 0:00:00]} 45. axb6 {[%emt 0:00:00]} Ba6 {[%emt 0:00:00]} 46. g4 {[%emt 0:00:00]} d3 {[%emt 0:00:00]} 47. gxh5 {[%emt 0:00:00]} d2 {[%emt 0:00:00]} 48. h6 {[%emt 0:00:00]} d1=Q {[%emt 0:00:10]} 49. h7+ {[%emt 0:00:01]} Kh8 {[%emt 0:00:00]} 50. Kg2 {[%emt 0:00:10]} Qe2+ {[%emt 0:00:00]} 51. Kh1 {[%emt 0:00:12]} Qf3+ {[%emt 0:00:00]} 52. Kh2 {[%emt 0:00:17]} Bf1 {[%emt 0:00:00][%csl Gf1][%cal Rf3g2]} 53. h4 {[%emt 0:00:11]} Qg2# {[%emt 0:00:00] Weighted Error Value: White=0.59/Black=0.24 (precise)} 0-1

[Event "GER-ch Youth-U12 2022"]
[Site "Willingen"]
[Date "2022.06.05"]
[Round "2.19"]
[White "Burkart, Lloyd Shang"]
[Black "Mukazhanov, Mansur"]
[Result "1-0"]
[ECO "A10"]
[WhiteElo "1559"]
[BlackElo "1279"]
[Annotator "NA RC COMBH"]
[PlyCount "71"]
[EventDate "2022.06.05"]
[EventType "swiss"]
[EventRounds "9"]
[EventCountry "GER"]
[SourceTitle "playchess.com"]
[Source "ChessBase"]
[SourceQuality "1"]
[TimeControl "40/4500+30:900+30"]

1. d4 {[%emt 0:00:00]} Nf6 {[%emt 0:00:00]} 2. c4 {[%emt 0:00:00]} e6 {[%emt 0:00:00]} 3. g3 {[%emt 0:00:00]} Nc6 {[%emt 0:00:00]} 4. Nf3 {[%emt 0:00:00]} b6 {[%emt 0:00:00]} 5. Bg2 {[%emt 0:00:00]} Bb7 {[%emt 0:01:13]} 6. Nc3 {[%emt 0:00:00]} Be7 {[%emt 0:02:54]} 7. O-O {[%emt 0:00:00]} O-O {[%emt 0:00:57]} 8. Qd3 {[%emt 0:04:28]} Nb4 {[%emt 0:00:38]} 9. Qb1 {[%emt 0:01:51]} Ne8 {[%emt 0:03:13]} 10. a3 {[%emt 0:02:08]} Nc6 {[%emt 0:00:14]} 11. e4 {[%emt 0:01:21]} f6 {[%emt 0:10:02]} 12. b4 {[%emt 0:05:14]} Rb8 {[%emt 0:02:31]} 13. Qd3 {[%emt 0:07:39]} a5 {[%emt 0:07:10]} 14. b5 {[%emt 0:02:10]} Na7 {[%emt 0:01:30]} 15. Be3 {[%emt 0:05:22]} c6 {[%emt 0:02:45]} 16. a4 {[%emt 0:02:06]} cxb5 {[%emt 0:00:31]} 17. axb5 {[%emt 0:02:18]} d5 {[%emt 0:01:03]} 18. exd5 {[%emt 0:03:56]} exd5 {[%emt 0:00:36]} 19. c5 {[%emt 0:01:15]} bxc5 {[%emt 0:01:18]} 20. dxc5 {[%emt 0:00:28]} Ra8 {[%emt 0:08:23]} 21. Nd4 {[%emt 0:03:18]} Bxc5 {[%emt 0:03:46]} 22. Ne6 {[%emt 0:00:08]} Qd6 {[%emt 0:00:56]} 23. Nxc5 {[%emt 0:00:34]} Rb8 {[%emt 0:01:08]} 24. Bf4 {[%emt 0:02:18]} Qxc5 {[%emt 0:00:31]} 25. Bxb8 {[%emt 0:00:25]} Kh8 {[%emt 0:04:03]} 26. Na4 {[%emt 0:02:47]} Qxb5 {[%emt 0:01:03]} 27. Qb1 {[%emt 0:01:05]} Bc6 {[%emt 0:03:01]} 28. Bxa7 {[%emt 0:00:15]} Nc7 {[%emt 0:00:50]} 29. Qxb5 {[%emt 0:00:16]} Nxb5 {[%emt 0:00:19]} 30. Bb6 {[%emt 0:01:06]} Ba8 {[%emt 0:01:30]} 31. Bxa5 {[%emt 0:00:33]} d4 {[%emt 0:00:49]} 32. Rfd1 {[%emt 0:02:13]} h6 {[%emt 0:00:57]} 33. Bb6 {[%emt 0:00:45]} Bxg2 {[%emt 0:00:26]} 34. Kxg2 {[%emt 0:00:52]} Nc3 {[%emt 0:00:45]} 35. Nxc3 {[%emt 0:00:05]} dxc3 {[%emt 0:00:06]} 36. Rac1 {[%emt 0:00:07]} 1-0

[Event "GER-ch Youth-U12 2022"]
[Site "Willingen"]
[Date "2022.06.05"]
[Round "2.20"]
[White "Wylie, Leonard"]
[Black "Xu, Wanghan"]
[Result "1-0"]
[ECO "C21"]
[WhiteElo "1733"]
[BlackElo "1419"]
[Annotator "NA RC COMBH"]
[PlyCount "125"]
[EventDate "2022.06.05"]
[EventType "swiss"]
[EventRounds "9"]
[EventCountry "GER"]
[SourceTitle "playchess.com"]
[Source "ChessBase"]
[SourceQuality "1"]
[TimeControl "40/4500+30:900+30"]

1. e4 {[%emt 0:00:00]} e5 {[%emt 0:00:00]} 2. d4 {[%emt 0:00:00]} exd4 {[%emt 0:00:00]} 3. Bc4 {[%emt 0:00:00]} Bc5 {[%emt 0:00:00]} 4. c3 {[%emt 0:00:00]} dxc3 {[%emt 0:00:00]} 5. Bxf7+ {[%emt 0:00:00]} Kxf7 {[%emt 0:00:00]} 6. Qd5+ {[%emt 0:00:00]} Ke8 {[%emt 0:00:00]} 7. Qh5+ {[%emt 0:00:00]} Kf8 {[%emt 0:00:00]} 8. Qxc5+ {[%emt 0:00:00]} d6 {[%emt 0:00:00]} 9. Qxc3 {[%emt 0:00:00]} Nf6 {[%emt 0:00:00]} 10. Bg5 {[%emt 0:00:00]} Bd7 {[%emt 0:00:00]} 11. Nf3 {[%emt 0:00:00]} Nc6 {[%emt 0:00:00]} 12. Nbd2 {[%emt 0:00:00]} Kf7 {[%emt 0:00:00]} 13. Qb3+ {[%emt 0:00:00]} Be6 {[%emt 0:00:00]} 14. Qxb7 {[%emt 0:00:00]} Qd7 {[%emt 0:00:00]} 15. O-O {[%emt 0:00:00]} Rhb8 {[%emt 0:00:00]} 16. Qa6 {[%emt 0:00:00]} Rb6 {[%emt 0:00:00]} 17. Qa3 {[%emt 0:00:00]} Kg8 {[%emt 0:00:00]} 18. Qc3 {[%emt 0:02:21]} Rf8 {[%emt 0:00:00]} 19. Be3 {[%emt 0:05:29]} Rbb8 {[%emt 0:00:00]} 20. Ng5 {[%emt 0:03:38]} h6 {[%emt 0:00:56]} 21. Nxe6 {[%emt 0:00:44]} Qxe6 {[%emt 0:00:15]} 22. Qxc6 {[%emt 0:00:31]} Qe7 {[%emt 0:02:35]} 23. b3 {[%emt 0:01:11]} Ng4 {[%emt 0:00:33]} 24. Bxa7 {[%emt 0:02:56]} Ra8 {[%emt 0:02:13]} 25. Bd4 {[%emt 0:01:48]} Ra5 {[%emt 0:01:19]} 26. h3 {[%emt 0:03:57]} Qg5 {[%emt 0:02:51]} 27. hxg4 {[%emt 0:02:04]} Qxg4 {[%emt 0:01:26]} 28. Qc4+ {[%emt 0:02:04]} Kh7 {[%emt 0:00:42]} 29. Qc3 {[%emt 0:02:26]} Rg5 {[%emt 0:00:45]} 30. Qg3 {[%emt 0:01:50]} Qh5 {[%emt 0:00:39]} 31. Qh2 {[%emt 0:00:56]} Qg6 {[%emt 0:02:13]} 32. Rae1 {[%emt 0:02:55]} Rh5 {[%emt 0:00:26]} 33. Qg3 {[%emt 0:00:55]} Rg5 {[%emt 0:00:09]} 34. Qh3 {[%emt 0:01:16]} Rh5 {[%emt 0:00:16]} 35. Qd3 {[%emt 0:01:10]} Rf4 {[%emt 0:00:52]} 36. Qg3 {[%emt 0:04:02]} Rg4 {[%emt 0:00:11]} 37. Qf3 {[%emt 0:00:21]} Rgh4 {[%emt 0:00:12]} 38. g3 {[%emt 0:00:52]} Rg4 {[%emt 0:01:14]} 39. e5 {[%emt 0:03:15]} Rh3 {[%emt 0:04:18]} 40. Kg2 {[%emt 0:02:08]} Rh5 {[%emt 0:01:51]} 41. e6 {[%emt 0:15:23]} Rf5 {[%emt 0:19:05]} 42. Qxf5 {[%emt 0:03:20]} Qxf5 {[%emt 0:00:07]} 43. e7 {[%emt 0:00:05]} Rxd4 {[%emt 0:01:26]} 44. e8=Q {[%emt 0:00:29]} Rxd2 {[%emt 0:00:21]} 45. Qe4 {[%emt 0:00:12]} Qxe4+ {[%emt 0:00:07]} 46. Rxe4 {[%emt 0:00:07]} Rxa2 {[%emt 0:00:05]} 47. Re7 {[%emt 0:00:06]} Rb2 {[%emt 0:00:19]} 48. Rxc7 {[%emt 0:00:13]} Rxb3 {[%emt 0:00:06]} 49. Rd1 {[%emt 0:00:07]} Rb6 {[%emt 0:00:23]} 50. Rd7 {[%emt 0:00:12]} Rb2 {[%emt 0:00:28]} 51. R1xd6 {[%emt 0:00:14]} Rb5 {[%emt 0:00:27]} 52. Re6 {[%emt 0:00:17]} Rg5 {[%emt 0:00:07]} 53. Ree7 {[%emt 0:00:08]} h5 {[%emt 0:00:15]} 54. f4 {[%emt 0:00:05]} Rg4 {[%emt 0:00:27]} 55. Kh3 {[%emt 0:00:08]} Kh6 {[%emt 0:00:16]} 56. Re6+ {[%emt 0:00:19]} Kh7 {[%emt 0:00:32]} 57. Rd5 {[%emt 0:00:14]} g6 {[%emt 0:00:11]} 58. Rd7+ {[%emt 0:00:09]} Kh6 {[%emt 0:00:07]} 59. Re8 {[%emt 0:00:08]} Rxf4 {[%emt 0:00:27]} 60. gxf4 {[%emt 0:00:27]} g5 {[%emt 0:00:08]} 61. f5 {[%emt 0:00:26]} g4+ {[%emt 0:00:05]} 62. Kh4 {[%emt 0:00:08]} g3 {[%emt 0:00:08]} 63. Rh8# {[%emt 0:00:22]} 1-0

[Event "GER-ch Youth-U12 2022"]
[Site "Willingen"]
[Date "2022.06.05"]
[Round "2.21"]
[White "Pimenov, Danil"]
[Black "Fettig, Michel"]
[Result "1-0"]
[ECO "C01"]
[WhiteElo "1337"]
[BlackElo "1407"]
[Annotator "NA RC COMBH"]
[PlyCount "69"]
[EventDate "2022.06.05"]
[EventType "swiss"]
[EventRounds "9"]
[EventCountry "GER"]
[SourceTitle "playchess.com"]
[Source "ChessBase"]
[SourceQuality "1"]
[TimeControl "40/4500+30:900+30"]

1. e4 {[%emt 0:00:00]} e6 {[%emt 0:00:00]} 2. d4 {[%emt 0:00:00]} d5 {[%emt 0:00:00]} 3. exd5 {[%emt 0:00:00]} exd5 {[%emt 0:00:00]} 4. Nf3 {[%emt 0:00:00]} Nc6 {[%emt 0:00:00]} 5. c4 {[%emt 0:00:00]} Nf6 {[%emt 0:00:00]} 6. Nc3 {[%emt 0:00:00]} Bg4 {[%emt 0:00:00]} 7. Be2 {[%emt 0:00:00]} Bb4 {[%emt 0:00:00]} 8. O-O {[%emt 0:00:00]} O-O {[%emt 0:00:00]} 9. Bg5 {[%emt 0:00:00]} dxc4 {[%emt 0:04:09]} 10. d5 {[%emt 0:00:00]} Bxc3 {[%emt 0:03:25]} 11. dxc6 {[%emt 0:00:00]} Bxb2 {[%emt 0:02:09]} 12. cxb7 {[%emt 0:04:05]} Rb8 {[%emt 0:00:25]} 13. Rb1 {[%emt 0:01:34]} c3 {[%emt 0:01:15]} 14. Qc2 {[%emt 0:08:39]} Rxb7 {[%emt 0:13:42]} 15. Rfd1 {[%emt 0:00:25]} Qc8 {[%emt 0:02:05]} 16. Bxf6 {[%emt 0:04:55]} gxf6 {[%emt 0:00:22]} 17. Bd3 {[%emt 0:02:30]} Kg7 {[%emt 0:06:03]} 18. Re1 {[%emt 0:06:46]} Rg8 {[%emt 0:03:40]} 19. Nd4 {[%emt 0:03:17]} c5 {[%emt 0:10:43]} 20. Nf5+ {[%emt 0:00:42]} Bxf5 {[%emt 0:03:06]} 21. Bxf5 {[%emt 0:01:15]} Qc7 {[%emt 0:01:50]} 22. Re3 {[%emt 0:01:07]} Rbb8 {[%emt 0:08:31]} 23. Rd1 {[%emt 0:04:31]} Rbd8 {[%emt 0:00:53]} 24. Rde1 {[%emt 0:03:34]} Rd2 {[%emt 0:01:06]} 25. Qe4 {[%emt 0:00:38]} Qe5 {[%emt 0:16:48]} 26. Rg3+ {[%emt 0:01:15]} Kf8 {[%emt 0:00:09]} 27. Qa8+ {[%emt 0:01:02]} Ke7 {[%emt 0:00:32]} 28. Qb7+ {[%emt 0:00:42]} Kf8 {[%emt 0:00:31]} 29. Qc8+ {[%emt 0:00:20]} Ke7 {[%emt 0:00:13]} 30. Rxe5+ {[%emt 0:00:11]} fxe5 {[%emt 0:00:09]} 31. Qc7+ {[%emt 0:00:15]} Kf6 {[%emt 0:00:15]} 32. Qc6+ {[%emt 0:01:54]} Ke7 {[%emt 0:00:39]} 33. Rd3 {[%emt 0:01:01]} Rd8 {[%emt 0:00:23]} 34. Qc7+ {[%emt 0:00:24]} Ke8 {[%emt 0:01:35]} 35. Qxd8# {[%emt 0:00:37]} 1-0

[Event "GER-ch Youth-U12 2022"]
[Site "Willingen"]
[Date "2022.06.05"]
[Round "2.22"]
[White "Hellenbroich, Hanno"]
[Black "Gulamzada, Elmir"]
[Result "1-0"]
[ECO "C01"]
[WhiteElo "1274"]
[BlackElo "1539"]
[Annotator "NA RC COMBH"]
[PlyCount "49"]
[EventDate "2022.06.05"]
[EventType "swiss"]
[EventRounds "9"]
[EventCountry "GER"]
[SourceTitle "playchess.com"]
[Source "ChessBase"]
[SourceQuality "1"]
[TimeControl "40/4500+30:900+30"]

1. e4 {[%emt 0:00:00]} e6 {[%emt 0:00:00]} 2. d4 {[%emt 0:00:06]} d5 {[%emt 0:00:24]} 3. Bd3 {[%emt 0:00:05]} Nf6 {[%emt 0:01:02]} 4. e5 {[%emt 0:00:06]} Nfd7 {[%emt 0:00:06]} 5. Ne2 {[%emt 0:02:18]} c5 {[%emt 0:00:19]} 6. c3 {[%emt 0:00:00]} Nc6 {[%emt 0:00:00]} 7. a3 {[%emt 0:00:00]} Qb6 {[%emt 0:00:00]} 8. Bc2 {[%emt 0:00:00]} cxd4 {[%emt 0:00:00]} 9. cxd4 {[%emt 0:00:00]} Be7 {[%emt 0:00:00]} 10. f4 {[%emt 0:00:00]} f6 {[%emt 0:01:57]} 11. Nbc3 {[%emt 0:03:41]} fxe5 {[%emt 0:07:18]} 12. fxe5 {[%emt 0:00:23]} O-O {[%emt 0:05:17]} 13. Na4 {[%emt 0:01:45]} Qc7 {[%emt 0:03:26]} 14. Nf4 {[%emt 0:00:30]} Nb6 {[%emt 0:02:05]} 15. Qd3 {[%emt 0:05:03]} g6 {[%emt 0:04:50]} 16. Nxg6 {[%emt 0:01:31]} Rf7 {[%emt 0:03:12]} 17. Nxb6 {[%emt 0:00:25]} Qxb6 {[%emt 0:01:19]} 18. Nxe7+ {[%emt 0:07:44]} Rxe7 {[%emt 0:01:44]} 19. Bg5 {[%emt 0:02:08]} Rg7 {[%emt 0:00:25]} 20. Bh6 {[%emt 0:01:05]} Rg6 {[%emt 0:00:57]} 21. Rf1 {[%emt 0:00:18]} Rxh6 {[%emt 0:01:55]} 22. Qg3+ {[%emt 0:00:15]} Rg6 {[%emt 0:01:44]} 23. Bxg6 {[%emt 0:00:02]} Bd7 {[%emt 0:02:12]} 24. Be8+ {[%emt 0:00:11]} Kh8 {[%emt 0:00:21]} 25. Rf8# {[%emt 0:00:10]} 1-0

[Event "GER-ch Youth-U12 2022"]
[Site "Willingen"]
[Date "2022.06.05"]
[Round "2.23"]
[White "Nguyen, Bach Khoi"]
[Black "Draude, Theo"]
[Result "1-0"]
[ECO "C50"]
[WhiteElo "1261"]
[BlackElo "1397"]
[Annotator "NA RC COMBH"]
[PlyCount "120"]
[EventDate "2022.06.05"]
[EventType "swiss"]
[EventRounds "9"]
[EventCountry "GER"]
[SourceTitle "playchess.com"]
[Source "ChessBase"]
[SourceQuality "1"]
[TimeControl "40/4500+30:900+30"]

1. e4 {[%emt 0:00:00]} e5 {[%emt 0:00:00]} 2. Nf3 {[%emt 0:00:00]} Nc6 {[%emt 0:00:00]} 3. Bc4 {[%emt 0:00:00]} Nf6 {[%emt 0:01:05]} 4. d3 {[%emt 0:00:00]} h6 {[%emt 0:00:00]} 5. Nc3 {[%emt 0:00:00]} Bc5 {[%emt 0:00:00]} 6. Be3 {[%emt 0:00:00]} Bb6 {[%emt 0:00:00]} 7. Qd2 {[%emt 0:00:00]} d6 {[%emt 0:00:00]} 8. O-O-O {[%emt 0:00:00]} Nd4 {[%emt 0:00:00]} 9. Bxd4 {[%emt 0:00:00]} exd4 {[%emt 0:00:16]} 10. Ne2 {[%emt 0:00:00]} Bg4 {[%emt 0:00:00]} 11. h3 {[%emt 0:00:00]} Bxf3 {[%emt 0:00:30]} 12. gxf3 {[%emt 0:00:00]} Qd7 {[%emt 0:00:00]} 13. Rdg1 {[%emt 0:00:00]} Rg8 {[%emt 0:00:00]} 14. Rg2 {[%emt 0:00:00]} O-O-O {[%emt 0:00:00]} 15. Rhg1 {[%emt 0:00:00]} g5 {[%emt 0:00:00]} 16. f4 {[%emt 0:00:00]} g4 {[%emt 0:00:00]} 17. hxg4 {[%emt 0:00:00]} Rxg4 {[%emt 0:00:00]} 18. Rxg4 {[%emt 0:01:02]} Nxg4 {[%emt 0:00:00]} 19. f5 {[%emt 0:00:47]} Ne5 {[%emt 0:00:00]} 20. Qb4 {[%emt 0:03:56]} c5 {[%emt 0:00:00]} 21. Qb3 {[%emt 0:03:00]} Nxc4 {[%emt 0:00:00]} 22. Qxc4 {[%emt 0:01:37]} d5 {[%emt 0:00:00]} 23. Qb3 {[%emt 0:03:03]} dxe4 {[%emt 0:00:00]} 24. dxe4 {[%emt 0:00:11]} Qc7 {[%emt 0:00:00]} 25. Rg7 {[%emt 0:01:01]} c4 {[%emt 0:00:00]} 26. Qg3 {[%emt 0:03:24]} Qe7 {[%emt 0:00:00]} 27. Qg4 {[%emt 0:02:37]} Kb8 {[%emt 0:00:39]} 28. Rg8 {[%emt 0:05:28]} Rxg8 {[%emt 0:00:57]} 29. Qxg8+ {[%emt 0:00:11]} Kc7 {[%emt 0:00:12]} 30. Nf4 {[%emt 0:01:31]} Kc6 {[%emt 0:03:36]} 31. f3 {[%emt 0:06:58]} Qh4 {[%emt 0:01:51]} 32. Qe8+ {[%emt 0:00:44]} Kc5 {[%emt 0:00:39]} 33. Qe5+ {[%emt 0:00:39]} Kb4 {[%emt 0:00:37]} 34. Nd5+ {[%emt 0:01:18]} Ka4 {[%emt 0:00:45]} 35. b3+ {[%emt 0:02:13]} Ka3 {[%emt 0:00:34]} 36. Qe7+ {[%emt 0:28:22]} Qxe7 {[%emt 0:00:21]} 37. Nxe7 {[%emt 0:00:04]} h5 {[%emt 0:00:25]} 38. Ng6 {[%emt 0:02:03]} c3 {[%emt 0:00:57]} 39. e5 {[%emt 0:00:50]} Bd8 {[%emt 0:00:23]} 40. e6 {[%emt 0:01:43]} fxe6 {[%emt 0:00:07]} 41. fxe6 {[%emt 0:15:04]} h4 {[%emt 0:15:11]} 42. e7 {[%emt 0:00:27]} Bxe7 {[%emt 0:00:20]} 43. Nxe7 {[%emt 0:00:04]} h3 {[%emt 0:00:05]} 44. Nf5 {[%emt 0:00:02]} h2 {[%emt 0:00:10]} 45. Ng3 {[%emt 0:00:03]} Kxa2 {[%emt 0:00:06]} 46. f4 {[%emt 0:00:09]} d3 {[%emt 0:01:17]} 47. f5 {[%emt 0:00:32]} d2+ {[%emt 0:00:20]} 48. Kd1 {[%emt 0:00:04]} b5 {[%emt 0:00:31]} 49. f6 {[%emt 0:00:05]} b4 {[%emt 0:00:08]} 50. f7 {[%emt 0:00:08]} a5 {[%emt 0:00:04]} 51. f8=Q {[%emt 0:00:08]} a4 {[%emt 0:00:06]} 52. bxa4 {[%emt 0:00:56]} b3 {[%emt 0:00:18]} 53. Qg8 {[%emt 0:00:08]} Ka1 {[%emt 0:00:07]} 54. cxb3 {[%emt 0:00:35]} Kb1 {[%emt 0:00:22]} 55. Qc4 {[%emt 0:00:17]} h1=Q+ {[%emt 0:00:58]} 56. Nxh1 {[%emt 0:00:06]} c2+ {[%emt 0:00:25]} 57. Qxc2+ {[%emt 0:00:08]} Ka1 {[%emt 0:00:04]} 58. Qxd2 {[%emt 0:00:28]} Kb1 {[%emt 0:00:12]} 59. Nf2 {[%emt 0:00:14]} Ka1 {[%emt 0:00:04]} 60. Nd3 {[%emt 0:00:11]} Kb1 {[%emt 0:01:06]} 1-0